fUST/lending_fUST_20250312
["ID","MTS","AMOUNT","RATE_DAILY","PERIOD"]
[356009269,1741794639680,-500.0,0.00021917,2]
[356009270,1741794639690,-500.0,0.00021917,2]
[356009271,1741794639699,-500.0,0.00021917,2]
[356009272,1741794639709,-500.0,0.00021917,2]
[356009273,1741794639718,-500.0,0.00021917,2]
[356009274,1741794639728,-500.0,0.00021917,2]
[356009275,1741794639738,-512.69,0.00021917,2]
[356009276,1741794639748,-500.0,0.00021917,2]
[356009277,1741794639758,-500.0,0.00021917,2]
[356009278,1741794639768,-500.0,0.00021917,2]
[356009279,1741794639779,-533.65329777,0.00021917,2]
[356009280,1741794639789,-500.0,0.00021917,2]
[356009281,1741794639799,-500.0,0.00021917,2]
[356009282,1741794639809,-531.11093057,0.00021917,2]
[356009283,1741794639818,-500.0,0.00021917,2]
[356009284,1741794639828,-500.0,0.00021917,2]
[356009285,1741794639838,-500.0,0.00021917,2]
[356009286,1741794639848,-500.0,0.00021917,2]
[356009287,1741794639857,-500.0,0.00021917,2]
[356009288,1741794639867,-500.0,0.00021917,2]
[356009289,1741794639877,-500.0,0.00021917,2]
[356009290,1741794639887,-500.0,0.00021917,2]
[356009291,1741794639897,-500.0,0.00021917,2]
[356009292,1741794639907,-508.69685375,0.00021917,2]
[356009293,1741794639917,-500.0,0.00021917,2]
[356009294,1741794639927,-563.81168992,0.00021917,2]
[356009295,1741794639937,-500.0,0.00021917,2]
[356009296,1741794639947,-500.0,0.00021917,2]
[356009297,1741794639957,-500.0,0.00021917,2]
[356009298,1741794639968,-500.0,0.00021917,2]
[356009299,1741794639978,-500.0,0.00021917,2]
[356009300,1741794639988,-500.0,0.00021917,2]
[356009301,1741794639998,-500.0,0.00021917,2]
[356009302,1741794640008,-500.0,0.00021917,2]
[356009303,1741794640018,-500.0,0.00021917,2]
[356009304,1741794640031,-500.0,0.00021917,2]
[356009305,1741794640041,-270.48531029,0.00021917,2]
[356009306,1741794640051,-500.0,0.00021917,2]
[356009307,1741794640061,-500.0,0.00021917,2]
[356009308,1741794640071,-500.0,0.00021917,2]
[356009309,1741794640082,-539.28,0.00021917,2]
[356009310,1741794640092,-500.0,0.00021917,2]
[356009311,1741794640103,-500.0,0.00021917,2]
[356009312,1741794640114,-500.0,0.00021917,2]
[356009313,1741794640124,-500.0,0.00021917,2]
[356009314,1741794640134,-500.0,0.00021917,2]
[356009315,1741794640144,-500.0,0.00021917,2]
[356009316,1741794640154,-500.0,0.00021917,2]
[356009317,1741794640164,-500.0,0.00021917,2]
[356009318,1741794640175,-500.0,0.00021917,2]
[356009319,1741794640185,-500.0,0.00021917,2]
[356009320,1741794640195,-500.0,0.00021917,2]
[356009321,1741794640493,-500.0,0.00021917,2]
[356009322,1741794640506,-500.0,0.00021917,2]
[356009323,1741794640516,-1022.31,0.00021917,2]
[356009324,1741794640526,-1009.59,0.00021917,2]
[356009325,1741794640537,-500.0,0.00021917,2]
[356009326,1741794640547,-500.0,0.00021917,2]
[356009327,1741794640557,-500.0,0.00021917,2]
[356009328,1741794640567,-500.0,0.00021917,2]
[356009329,1741794640579,-380.99794679,0.00021917,2]
[356009330,1741794640589,-500.0,0.00021917,2]
[356009331,1741794640599,-1471.75,0.00021917,2]
[356009332,1741794640608,-500.0,0.00021917,2]
[356009333,1741794640618,-509.3358538,0.00021917,2]
[356009334,1741794640627,-914.37,0.00021917,2]
[356009335,1741794640637,-500.0,0.00021917,2]
[356009336,1741794640646,-522.55,0.00021917,2]
[356009337,1741794640655,-511.27720669,0.00021917,2]
[356009338,1741794640665,-561.40885405,0.00021917,2]
[356009339,1741794640675,-500.0,0.00021917,2]
[356009340,1741794640684,-500.0,0.00021917,2]
[356009341,1741794640694,-500.0,0.00021917,2]
[356009342,1741794640703,-941.18,0.00021917,2]
[356009343,1741794640713,-500.0,0.00021917,2]
[356009344,1741794640722,-500.0,0.00021917,2]
[356009345,1741794640731,-500.0,0.00021917,2]
[356009346,1741794640740,-1862.45,0.00021917,2]
[356009347,1741794640750,-500.0,0.00021917,2]
[356009348,1741794640759,-500.0,0.00021917,2]
[356009349,1741794640768,-500.0,0.00021917,2]
[356009350,1741794640779,-500.0,0.00021917,2]
[356009351,1741794640789,-619.47092971,0.00021917,2]
[356009352,1741794640798,-518.50574985,0.00021917,2]
[356009353,1741794640808,-530.35,0.00021917,2]
[356009354,1741794640817,-500.0,0.00021917,2]
[356009355,1741794640830,-500.0,0.00021917,2]
[356009356,1741794640839,-500.0,0.00021917,2]
[356009357,1741794640849,-500.0,0.00021917,2]
[356009358,1741794640858,-500.0,0.00021917,2]
[356009359,1741794640868,-555.86,0.00021917,2]
[356009360,1741794640877,-890.46,0.00021917,2]
[356009361,1741794640887,-500.0,0.00021917,2]
[356009362,1741794640897,-500.0,0.00021917,2]
[356009363,1741794640906,-500.0,0.00021917,2]
[356009364,1741794640916,-500.0,0.00021917,2]
[356009365,1741794640925,-500.0,0.00021917,2]
[356009366,1741794640935,-500.9341411,0.00021917,2]
[356009367,1741794640945,-581.21,0.00021917,2]
[356009368,1741794640954,-500.0,0.00021917,2]
[356009369,1741794640964,-570.22,0.00021917,2]
[356009370,1741794640973,-500.0,0.00021917,2]
[356009371,1741794640983,-1798.17,0.00021917,2]
[356009372,1741794640992,-500.0,0.00021917,2]
[356009373,1741794641002,-286.08046567,0.00021917,2]
[356009374,1741794641012,-2164.57,0.00021917,2]
[356009375,1741794641021,-500.0,0.00021917,2]
[356009376,1741794641032,-1121.99,0.00021917,2]
[356009377,1741794641042,-500.0,0.00021917,2]
[356009378,1741794641051,-500.0,0.00021917,2]
[356009380,1741794641061,-500.0,0.00021917,2]
[356009381,1741794641070,-500.0,0.00021917,2]
[356009383,1741794641079,-500.0,0.00021917,2]
[356009385,1741794641089,-1604.04,0.00021917,2]
[356009386,1741794641098,-500.0,0.00021917,2]
[356009388,1741794641109,-511.53,0.00021917,2]
[356009389,1741794641119,-500.0,0.00021917,2]
[356009390,1741794641128,-580.03060488,0.00021917,2]
[356009392,1741794641138,-500.0,0.00021917,2]
[356009393,1741794641147,-1782.15,0.00021917,2]
[356009395,1741794641157,-1013.36,0.00021917,2]
[356009397,1741794641166,-500.0,0.00021917,2]
[356009399,1741794641176,-500.0,0.00021917,2]
[356009400,1741794641186,-192.28028561,0.00021917,2]
[356009401,1741794641195,-166.29440643,0.00021917,2]
[356009402,1741794641205,-514.06,0.00021917,2]
[356009403,1741794641217,-3181.93,0.00021917,2]
[356009404,1741794641227,-500.0,0.00021917,2]
[356009405,1741794641236,-500.0,0.00021917,2]
[356009406,1741794641246,-500.0,0.00021917,2]
[356009407,1741794641256,-500.0,0.00021917,2]
[356009408,1741794641265,-214.10958853,0.00021917,2]
[356009409,1741794641274,-500.0,0.00021917,2]
[356009410,1741794641285,-500.0,0.00021917,2]
[356009411,1741794641294,-500.0,0.00021917,2]
[356009412,1741794641304,-500.0,0.00021917,2]
[356009413,1741794641313,-638.37521778,0.00021917,2]
[356009414,1741794641324,-317.80668087,0.00021917,2]
[356009415,1741794641333,-500.0,0.00021917,2]
[356009416,1741794641342,-500.0,0.00021917,2]
[356009417,1741794641352,-500.0,0.00021917,2]
[356009418,1741794641361,-500.0,0.00021917,2]
[356009419,1741794641371,-500.0,0.00021917,2]
[356009420,1741794641381,-1060.22,0.00021917,2]
[356009421,1741794641390,-214.15718757,0.00021917,2]
[356009422,1741794641400,-1325.79,0.00021917,2]
[356009423,1741794641409,-500.0,0.00021917,2]
[356009424,1741794641419,-788.48,0.00021917,2]
[356009425,1741794641428,-500.0,0.00021917,2]
[356009426,1741794641437,-500.0,0.00021917,2]
[356009427,1741794641447,-500.34277318,0.00021917,2]
[356009428,1741794641457,-612.89,0.00021917,2]
[356009429,1741794641466,-500.0,0.00021917,2]
[356009430,1741794641476,-500.0,0.00021917,2]
[356009431,1741794641486,-500.0,0.00021917,2]
[356009432,1741794641496,-520.8,0.00021917,2]
[356009433,1741794641506,-500.0,0.00021917,2]
[356009434,1741794641516,-630.42,0.00021917,2]
[356009435,1741794641525,-500.0,0.00021917,2]
[356009436,1741794641538,-589.49,0.00021917,2]
[356009437,1741794641547,-500.0,0.00021917,2]
[356009438,1741794641557,-500.0,0.00021917,2]
[356009439,1741794641566,-1492.56,0.00021917,2]
[356009440,1741794641576,-500.0,0.00021917,2]
[356009441,1741794641586,-500.0,0.00021917,2]
[356009442,1741794641595,-565.80402665,0.00021917,2]
[356009443,1741794641604,-748.84,0.00021917,2]
[356009444,1741794641614,-694.14,0.00021917,2]
[356009445,1741794641623,-500.0,0.00021917,2]
[356009446,1741794641632,-500.0,0.00021917,2]
[356009447,1741794641642,-500.0,0.00021917,2]
[356009448,1741794641651,-500.0,0.00021917,2]
[356009449,1741794641661,-500.0,0.00021917,2]
[356009450,1741794641671,-510.4787682,0.00021917,2]
[356009451,1741794641681,-1032.76,0.00021917,2]
[356009452,1741794641691,-500.0,0.00021917,2]
[356009453,1741794641701,-510.37000107,0.00021917,2]
[356009454,1741794641710,-580.19,0.00021917,2]
[356009455,1741794641719,-540.53,0.00021917,2]
[356009456,1741794641729,-791.38,0.00021917,2]
[356009457,1741794641739,-500.0,0.00021917,2]
[356009458,1741794641749,-500.0,0.00021917,2]
[356009459,1741794641759,-500.0,0.00021917,2]
[356009460,1741794641768,-500.0,0.00021917,2]
[356009461,1741794641780,-500.0,0.00021917,2]
[356009462,1741794641789,-500.0,0.00021917,2]
[356009463,1741794641799,-509.94627412,0.00021917,2]
[356009464,1741794641808,-511.66569921,0.00021917,2]
[356009465,1741794641817,-500.0,0.00021917,2]
[356009466,1741794641827,-515.69296982,0.00021917,2]
[356009467,1741794641836,-569.90006043,0.00021917,2]
[356009468,1741794641846,-500.0,0.00021917,2]
[356009469,1741794641855,-577.08,0.00021917,2]
[356009470,1741794641865,-500.0,0.00021917,2]
[356009471,1741794641875,-500.0,0.00021917,2]
[356009472,1741794641884,-500.0,0.00021917,2]
[356009473,1741794641893,-500.0,0.00021917,2]
[356009474,1741794641903,-1084.93,0.00021917,2]
[356009475,1741794641912,-541.50779989,0.00021917,2]
[356009476,1741794641922,-500.0,0.00021917,2]
[356009477,1741794641932,-186.13418734,0.00021917,2]
[356009478,1741794641942,-500.0,0.00021917,2]
[356009479,1741794641951,-500.0,0.00021917,2]
[356009480,1741794641961,-500.0,0.00021917,2]
[356009481,1741794641971,-515.77695533,0.00021917,2]
[356009482,1741794641980,-500.0,0.00021917,2]
[356009483,1741794641989,-500.0,0.00021917,2]
[356009484,1741794641999,-500.0,0.00021917,2]
[356009485,1741794642008,-500.0,0.00021917,2]
[356009486,1741794642018,-500.0,0.00021917,2]
[356009487,1741794642028,-1183.97,0.00021917,2]
[356009488,1741794642039,-500.0,0.00021917,2]
[356009489,1741794642048,-1076.98,0.00021917,2]
[356009490,1741794642057,-2510.1,0.00021917,2]
[356009491,1741794642067,-907.8,0.00021917,2]
[356009492,1741794642077,-500.0,0.00021917,2]
[356009493,1741794642087,-500.0,0.00021917,2]
[356009494,1741794642096,-500.0,0.00021917,2]
[356009495,1741794642106,-500.0,0.00021917,2]
[356009496,1741794642119,-500.0,0.00021917,2]
[356009497,1741794642129,-500.0,0.00021917,2]
[356009498,1741794642138,-154.22724065,0.00021917,2]
[356009499,1741794642148,-778.23,0.00021917,2]
[356009500,1741794642157,-500.0,0.00021917,2]
[356009501,1741794642167,-500.0,0.00021917,2]
[356009502,1741794642176,-787.23,0.00021917,2]
[356009503,1741794642186,-500.0,0.00021917,2]
[356009504,1741794642195,-944.52,0.00021917,2]
[356009505,1741794642204,-500.0,0.00021917,2]
[356009506,1741794642214,-500.0,0.00021917,2]
[356009507,1741794642224,-614.58,0.00021917,2]
[356009508,1741794642233,-500.0,0.00021917,2]
[356009509,1741794642243,-500.0,0.00021917,2]
[356009510,1741794642252,-1106.9,0.00021917,2]
[356009511,1741794642262,-1034.28,0.00021917,2]
[356009512,1741794642272,-500.0,0.00021917,2]
[356009513,1741794642282,-4410.72,0.00021917,2]
[356009514,1741794642292,-500.0,0.00021917,2]
[356009515,1741794642301,-576.5,0.00021917,2]
[356009516,1741794642310,-484.49440179,0.00021917,2]
[356009517,1741794642321,-1371.15,0.00021917,2]
[356009518,1741794642330,-500.0,0.00021917,2]
[356009519,1741794642340,-500.0,0.00021917,2]
[356009520,1741794642349,-919.97,0.00021917,2]
[356009521,1741794642359,-500.0,0.00021917,2]
[356009522,1741794642367,-500.0,0.00021917,2]
[356009523,1741794642377,-1336.41,0.00021917,2]
[356009524,1741794642387,-519.85,0.00021917,2]
[356009525,1741794642407,-500.0,0.00021917,2]
[356009526,1741794642417,-500.0,0.00021917,2]
[356009527,1741794642426,-500.0,0.00021917,2]
[356009528,1741794642435,-500.0,0.00021917,2]
[356009529,1741794642445,-500.0,0.00021917,2]
[356009530,1741794642454,-1538.87,0.00021917,2]
[356009531,1741794642464,-1391.97,0.00021917,2]
[356009532,1741794642474,-500.0,0.00021917,2]
[356009533,1741794642484,-500.0,0.00021917,2]
[356009534,1741794642496,-500.0,0.00021917,2]
[356009535,1741794642506,-500.0,0.00021917,2]
[356009536,1741794642516,-500.0,0.00021917,2]
[356009537,1741794642525,-500.0,0.00021917,2]
[356009538,1741794642535,-500.0,0.00021917,2]
[356009539,1741794642547,-500.0,0.00021917,2]
[356009540,1741794642556,-500.0,0.00021917,2]
[356009541,1741794642566,-500.0,0.00021917,2]
[356009542,1741794642576,-500.0,0.00021917,2]
[356009543,1741794642586,-500.0,0.00021917,2]
[356009544,1741794642596,-500.0,0.00021917,2]
[356009545,1741794642606,-500.0,0.00021917,2]
[356009546,1741794642615,-500.0,0.00021917,2]
[356009547,1741794642625,-623.65422809,0.00021917,2]
[356009548,1741794642635,-500.0,0.00021917,2]
[356009549,1741794642645,-500.0,0.00021917,2]
[356009550,1741794642655,-500.0,0.00021917,2]
[356009551,1741794642664,-500.0,0.00021917,2]
[356009552,1741794642674,-1043.35,0.00021917,2]
[356009553,1741794642683,-500.0,0.00021917,2]
[356009554,1741794642692,-1160.36,0.00021917,2]
[356009555,1741794642702,-28259.29,0.00021917,2]
[356009556,1741794642712,-500.0,0.00021917,2]
[356009557,1741794642722,-519.77981328,0.00021917,2]
[356009558,1741794642731,-500.0,0.00021917,2]
[356009559,1741794642741,-682.07,0.00021917,2]
[356009560,1741794642750,-658.96,0.00021917,2]
[356009561,1741794642759,-520.06302295,0.00021917,2]
[356009562,1741794642768,-500.0,0.00021917,2]
[356009563,1741794642780,-500.0,0.00021917,2]
[356009564,1741794642792,-465.28335422,0.00021917,2]
[356009565,1741794642802,-166.9256084,0.00021917,2]
[356009566,1741794642811,-1295.19,0.00021917,2]
[356009567,1741794642820,-1426.77,0.00021917,2]
[356009568,1741794642829,-500.0,0.00021917,2]
[356009569,1741794642839,-500.0,0.00021917,2]
[356009570,1741794642848,-500.0,0.00021917,2]
[356009571,1741794642857,-1318.16,0.00021917,2]
[356009572,1741794642867,-500.0,0.00021917,2]
[356009573,1741794642876,-500.0,0.00021917,2]
[356009574,1741794642885,-500.0,0.00021917,2]
[356009575,1741794642894,-1460.16,0.00021917,2]
[356009576,1741794642904,-2291.77,0.00021917,2]
[356009577,1741794642913,-500.0,0.00021917,2]
[356009578,1741794642922,-500.0,0.00021917,2]
[356009579,1741794642932,-14439.21,0.00021917,2]
[356009580,1741794642941,-500.0,0.00021917,2]
[356009581,1741794642951,-500.0,0.00021917,2]
[356009582,1741794642960,-516.74929057,0.00021917,2]
[356009583,1741794642970,-205.64621019,0.00021917,2]
[356009584,1741794642979,-500.0,0.00021917,2]
[356009585,1741794642989,-423.70646891,0.00021917,2]
[356009586,1741794642998,-500.0,0.00021917,2]
[356009587,1741794643008,-579.10752232,0.00021917,2]
[356009588,1741794643017,-828.25,0.00021917,2]
[356009589,1741794643027,-500.0,0.00021917,2]
[356009590,1741794643036,-500.0,0.00021917,2]
[356009591,1741794643046,-1100.44,0.00021917,2]
[356009592,1741794643066,-500.0,0.00021917,2]
[356009593,1741794643076,-500.0,0.00021917,2]
[356009594,1741794643087,-938.73,0.00021917,2]
[356009595,1741794643096,-3223.36,0.00021917,2]
[356009596,1741794643106,-500.0,0.00021917,2]
[356009597,1741794643118,-500.0,0.00021917,2]
[356009598,1741794643129,-838.96,0.00021917,2]
[356009599,1741794643139,-500.0,0.00021917,2]
[356009600,1741794643149,-2588.33,0.00021917,2]
[356009601,1741794643159,-500.0,0.00021917,2]
[356009602,1741794643169,-500.0,0.00021917,2]
[356009603,1741794643179,-500.0,0.00021917,2]
[356009605,1741794643189,-500.0,0.00021917,2]
[356009607,1741794643199,-500.0,0.00021917,2]
[356009609,1741794643209,-517.2,0.00021917,2]
[356009611,1741794643218,-2738.0,0.00021917,2]
[356009613,1741794643228,-500.0,0.00021917,2]
[356009615,1741794643238,-500.0,0.00021917,2]
[356009616,1741794643248,-500.0,0.00021917,2]
[356009618,1741794643258,-500.0,0.00021917,2]
[356009620,1741794643268,-1932.0,0.00021917,2]
[356009622,1741794643278,-1564.51,0.00021917,2]
[356009624,1741794643287,-500.0,0.00021917,2]
[356009626,1741794643297,-676.77,0.00021917,2]
[356009628,1741794643307,-704.21,0.00021917,2]
[356009630,1741794643317,-758.91,0.00021917,2]
[356009632,1741794643326,-500.0,0.00021917,2]
[356009634,1741794643336,-500.0,0.00021917,2]
[356009635,1741794643346,-500.0,0.00021917,2]
[356009636,1741794643356,-500.0,0.00021917,2]
[356009638,1741794643366,-1282.67,0.00021917,2]
[356009641,1741794643382,-500.0,0.00021917,2]
[356009646,1741794643393,-500.0,0.00021917,2]
[356009649,1741794643410,-1000.0,0.00021917,7]
[356009651,1741794643420,-665.39,0.00021917,2]
[356009652,1741794643429,-911.43,0.00021917,2]
[356009654,1741794643439,-500.0,0.00021917,2]
[356009655,1741794643449,-500.0,0.00021917,2]
[356009656,1741794643458,-1119.13,0.00021917,2]
[356009657,1741794643468,-931.73,0.00021917,2]
[356009658,1741794643478,-1076.48,0.00021917,2]
[356009659,1741794643487,-500.0,0.00021917,2]
[356009660,1741794643500,-500.0,0.00021917,2]
[356009661,1741794643510,-972.28,0.00021917,2]
[356009662,1741794643520,-500.0,0.00021917,2]
[356009663,1741794643532,-500.0,0.00021917,2]
[356009664,1741794643543,-500.0,0.00021917,2]
[356009665,1741794643553,-1892.44,0.00021917,2]
[356009666,1741794643564,-739.65,0.00021917,2]
[356009667,1741794643574,-660.77,0.00021917,2]
[356009668,1741794643585,-500.0,0.00021917,2]
[356009669,1741794643594,-500.0,0.00021917,2]
[356009670,1741794643604,-500.0,0.00021917,2]
[356009671,1741794643614,-1356.46,0.00021917,2]
[356009672,1741794643625,-500.0,0.00021917,2]
[356009673,1741794643634,-500.0,0.00021917,2]
[356009674,1741794643644,-500.0,0.00021917,2]
[356009675,1741794643654,-464.09170446,0.00021917,2]
[356009676,1741794643663,-500.0,0.00021917,2]
[356009677,1741794643674,-500.0,0.00021917,2]
[356009678,1741794643683,-522.41,0.00021917,2]
[356009679,1741794643693,-500.0,0.00021917,2]
[356009680,1741794643703,-506.04,0.00021917,2]
[356009681,1741794643713,-500.0,0.00021917,2]
[356009682,1741794643723,-1328.41,0.00021917,2]
[356009684,1741794643732,-500.0,0.00021917,2]
[356009686,1741794643743,-1030.75,0.00021917,2]
[356009688,1741794643753,-500.0,0.00021917,2]
[356009689,1741794643763,-500.0,0.00021917,2]
[356009690,1741794643773,-500.0,0.00021917,2]
[356009691,1741794643783,-683.89,0.00021917,2]
[356009692,1741794643793,-500.0,0.00021917,2]
[356009693,1741794643803,-1515.64,0.00021917,2]
[356009694,1741794643813,-1515.64,0.00021917,2]
[356009695,1741794643822,-1515.64,0.00021917,2]
[356009696,1741794643832,-1515.64,0.00021917,2]
[356009697,1741794643842,-1515.64,0.00021917,2]
[356009698,1741794643851,-1515.64,0.00021917,2]
[356009699,1741794643861,-1515.64,0.00021917,2]
[356009700,1741794643872,-1515.64,0.00021917,2]
[356009701,1741794643881,-914.22,0.00021917,2]
[356009702,1741794643891,-1515.64,0.00021917,2]
[356009703,1741794643901,-1515.64,0.00021917,2]
[356009704,1741794643911,-1515.64,0.00021917,2]
[356009705,1741794643921,-1515.64,0.00021917,2]
[356009706,1741794643931,-1515.64,0.00021917,2]
[356009707,1741794643941,-972.73,0.00021917,2]
[356009708,1741794643951,-1515.64,0.00021917,2]
[356009709,1741794643961,-1515.64,0.00021917,2]
[356009710,1741794643971,-1515.64,0.00021917,2]
[356009711,1741794643981,-1515.64,0.00021917,2]
[356009712,1741794643991,-1515.64,0.00021917,2]
[356009714,1741794644001,-1515.64,0.00021917,2]
[356009715,1741794644012,-1515.64,0.00021917,2]
[356009716,1741794644021,-514.00624379,0.00021917,2]
[356009717,1741794644032,-1515.64,0.00021917,2]
[356009718,1741794644042,-1515.64,0.00021917,2]
[356009719,1741794644052,-1515.64,0.00021917,2]
[356009721,1741794644061,-1515.67871699,0.00021917,2]
[356009722,1741794644071,-2819.17,0.00021917,2]
[356009723,1741794644081,-954.19,0.00021917,2]
[356009724,1741794644091,-2348.87,0.00021917,2]
[356009725,1741794644101,-500.0,0.00021917,2]
[356009726,1741794644112,-500.0,0.00021917,2]
[356009727,1741794644122,-500.0,0.00021917,2]
[356009728,1741794644132,-500.0,0.00021917,2]
[356009729,1741794644141,-500.0,0.00021917,2]
[356009730,1741794644151,-500.0,0.00021917,2]
[356009731,1741794644160,-581.01,0.00021917,2]
[356009732,1741794644170,-500.0,0.00021917,2]
[356009733,1741794644179,-499.2198666,0.00021917,2]
[356009734,1741794644189,-500.0,0.00021917,2]
[356009735,1741794644198,-500.0,0.00021917,2]
[356009736,1741794644208,-2409.61,0.00021917,2]
[356009737,1741794644218,-500.0,0.00021917,2]
[356009738,1741794644228,-500.0,0.00021917,2]
[356009739,1741794644238,-500.0,0.00021917,2]
[356009740,1741794644247,-500.0,0.00021917,2]
[356009741,1741794644257,-1945.35,0.00021917,2]
[356009742,1741794644267,-505.20966882,0.00021917,2]
[356009743,1741794644276,-495.0,0.00021917,2]
[356009744,1741794644289,-772.1,0.00021917,2]
[356009745,1741794644298,-7714.65,0.00021917,2]
[356009746,1741794644308,-500.0,0.00021917,2]
[356009747,1741794644318,-500.0,0.00021917,2]
[356009748,1741794644327,-9999.0,0.00021917,2]
[356009749,1741794644337,-500.0,0.00021917,2]
[356009750,1741794644347,-1372.84,0.00021917,2]
[356009751,1741794644356,-502.26857918,0.00021917,2]
[356009752,1741794644366,-500.0,0.00021917,2]
[356009753,1741794644375,-500.0,0.00021917,2]
[356009754,1741794644385,-500.0,0.00021917,2]
[356009755,1741794644398,-500.0,0.00021917,2]
[356009756,1741794644408,-500.0,0.00021917,2]
[356009757,1741794644418,-500.0,0.00021917,2]
[356009758,1741794644427,-500.0,0.00021917,2]
[356009759,1741794644437,-622.2,0.00021959,2]
[356009760,1741794644446,-500.0,0.00021973,2]
[356009761,1741794644456,-500.0,0.00021973,2]
[356009762,1741794644466,-323.28705421,0.00021973,2]
[356009763,1741794644476,-500.0,0.00021973,2]
[356009764,1741794644486,-500.0,0.00021973,2]
[356009765,1741794644497,-500.0,0.00021973,2]
[356009766,1741794644507,-500.0,0.00021973,2]
[356009767,1741794644517,-500.0,0.00021973,2]
[356009768,1741794644527,-500.0,0.00021973,2]
[356009769,1741794644542,-500.0,0.00021973,2]
[356009770,1741794644551,-500.0,0.00021973,2]
[356009771,1741794644562,-645.2214,0.00022014,2]
[356009772,1741794644572,-447.29129147,0.00022056,2]
[356009773,1741794644583,-787.558183,0.00022069,2]
[356009774,1741794644823,-200.0,0.00022165,2]
[356009775,1741794644834,-500.0,0.00022173,2]
[356009776,1741794644844,-500.0,0.00022173,2]
[356009777,1741794644854,-500.0,0.00022173,2]
[356009778,1741794644863,-500.0,0.00022173,2]
[356009779,1741794644873,-500.0,0.00022173,2]
[356009780,1741794644883,-500.0,0.00022173,2]
[356009781,1741794644892,-500.0,0.00022173,2]
[356009782,1741794644902,-500.0,0.00022173,2]
[356009783,1741794644911,-548.86546505,0.00022173,2]
[356009784,1741794644921,-361.51206647,0.00022173,2]
[356009785,1741794644930,-500.0,0.00022173,2]
[356009786,1741794644940,-500.0,0.00022173,2]
[356009787,1741794644950,-557.44440919,0.00022173,2]
[356009788,1741794644960,-500.0,0.00022173,2]
[356009789,1741794644970,-500.0,0.00022173,2]
[356009790,1741794644979,-500.0,0.00022173,2]
[356009791,1741794644989,-500.0,0.00022173,2]
[356009792,1741794644999,-500.0,0.00022173,2]
[356009793,1741794645009,-500.0,0.00022173,2]
[356009794,1741794645019,-500.0,0.00022173,2]
[356009795,1741794645031,-500.0,0.00022173,2]
[356009796,1741794645040,-500.0,0.00022173,2]
[356009797,1741794645049,-500.0,0.00022173,2]
[356009798,1741794645059,-500.0,0.00022173,2]
[356009799,1741794645068,-500.0,0.00022173,2]
[356009800,1741794645077,-500.0,0.00022173,2]
[356009801,1741794645087,-503.34918753,0.00022173,2]
[356009802,1741794645097,-500.0,0.00022173,2]
[356009803,1741794645106,-500.0,0.00022173,2]
[356009804,1741794645117,-500.0,0.00022173,2]
[356009805,1741794645127,-558.62141936,0.00022173,2]
[356009806,1741794645136,-253.34295931,0.00022173,2]
[356009807,1741794645146,-500.0,0.00022173,2]